bitfinex-derivatives/quotes_BNBF0:USTF0_20250413
["timestamp","ask_amount","ask_price","bid_price","bid_amount"]
[1744576312357,2.14972324,583.97,583.36,0.838]
[1744576312559,2.14972324,583.96,583.36,0.838]
[1744576312757,2.14972324,583.95,583.36,0.838]
[1744576312956,2.14972324,583.94,583.36,0.838]
[1744576313162,2.15048003,583.93,583.36,0.838]
[1744576313459,2.15048003,583.92,583.36,0.838]
[1744576313663,2.15048003,583.91,583.36,0.838]
[1744576313957,2.15048003,583.9,583.36,0.838]
[1744576314162,2.15048003,583.89,583.36,0.838]
[1744576314362,2.15048003,583.88,583.36,0.838]
[1744576314663,2.15048003,583.87,583.37,1.133]
[1744576314859,2.15048003,583.86,583.37,1.133]
[1744576315155,2.15048003,583.85,583.37,1.133]
[1744576315360,2.15048003,583.84,583.37,1.133]
[1744576315557,2.15048003,583.83,583.37,1.133]
[1744576315763,1.5061611,583.82,583.37,1.133]
[1744576315963,1.5061611,583.81,583.37,1.133]
[1744576316165,1.5061611,583.8,583.37,1.133]
[1744576316464,1.5061611,583.79,583.37,1.133]
[1744576316663,1.5061611,583.78,583.37,1.133]
[1744576316858,1.30708766,584.68,583.37,1.133]
[1744576317061,2.80693123,584.67,583.37,1.133]
[1744576317259,2.46485793,584.66,583.37,1.133]
[1744576317458,2.46485793,584.65,583.37,1.133]
[1744576317664,2.80694878,584.64,583.37,1.133]
[1744576317960,2.8069455,584.63,583.37,1.133]
[1744576318164,2.80695135,584.62,583.37,1.133]
[1744576318366,0.29804345,584.76,583.37,1.133]
[1744576318367,2.8069572,584.61,583.37,1.133]
[1744576318566,2.80696305,584.6,583.37,1.133]
[1744576318766,0.29804345,584.76,583.37,1.133]
[1744576318767,2.8069689,584.59,583.37,1.133]
[1744576319061,2.80697476,584.58,583.37,1.133]
[1744576319266,2.80698061,584.57,583.37,1.133]
[1744576319566,2.80698646,584.56,583.37,1.133]
[1744576319768,2.80699231,584.55,583.37,1.133]
[1744576320067,2.80699817,584.54,583.37,1.133]
[1744576320267,2.46714039,584.53,583.37,1.133]
[1744576320466,2.46714039,584.52,583.38,0.777]
[1744576320667,2.46714039,584.51,583.38,0.777]
[1744576320867,2.46714039,584.5,583.38,0.777]
[1744576321063,2.15588975,584.49,583.38,0.777]
[1744576321264,2.15588975,584.48,583.38,0.777]
[1744576321468,2.15588975,584.47,583.38,0.777]
[1744576321670,2.15588975,584.46,583.38,0.777]
[1744576321965,2.15588975,584.45,583.38,0.777]
[1744576322165,2.15588975,584.44,583.38,0.777]
[1744576322366,2.15588975,584.43,583.38,0.777]
[1744576322568,2.15588975,584.42,583.38,0.777]
[1744576322764,2.15588975,584.41,583.38,0.777]
[1744576322968,2.15588975,584.4,583.38,0.777]
[1744576323166,2.15588975,584.39,583.38,0.777]
[1744576323365,2.15588975,584.38,583.38,0.777]
[1744576323570,2.15588975,584.37,583.38,0.777]
[1744576323871,2.15588975,584.36,583.38,0.777]
[1744576324071,2.15588975,584.35,583.38,0.777]
[1744576324271,2.15588975,584.34,583.38,0.777]
[1744576324464,2.15588975,584.33,583.38,0.777]
[1744576324669,2.15588975,584.32,583.38,0.777]
[1744576324866,2.15588975,584.31,583.38,0.777]
[1744576325069,2.15734142,584.3,583.38,0.777]
[1744576325267,2.15734142,584.29,583.38,0.777]
[1744576325473,2.15737709,584.28,583.38,0.777]
[1744576325665,2.15737709,584.27,583.38,0.777]
[1744576325966,2.15737709,584.26,583.38,0.777]
[1744576326166,2.15737709,584.25,583.38,0.777]
[1744576326365,2.15737709,584.24,583.38,0.777]
[1744576326566,2.15737709,584.23,583.38,0.777]
[1744576326772,2.15766913,584.22,583.38,0.777]
[1744576326968,2.15766913,584.21,583.38,0.777]
[1744576327166,2.15766913,584.2,583.38,0.777]
[1744576327370,2.15766913,584.19,583.38,0.777]
[1744576327573,2.15766913,584.18,583.38,0.777]
[1744576327774,2.15766913,584.17,583.38,0.777]
[1744576327973,2.15766913,584.16,583.38,0.777]
[1744576328173,2.15766913,584.15,583.38,0.777]
[1744576328369,2.15766913,584.14,583.38,0.777]
[1744576328571,2.15766913,584.13,583.38,0.777]
[1744576328773,2.15766913,584.12,583.38,0.777]
[1744576328968,2.15766913,584.11,583.38,0.777]
[1744576329174,2.15766913,584.1,583.38,0.777]
[1744576329374,2.15766913,584.09,583.38,0.777]
[1744576329574,2.15766913,584.08,583.38,0.777]
[1744576329876,2.15766913,584.07,583.38,0.777]
[1744576330075,2.15766913,584.06,583.38,0.777]
[1744576330275,2.15766913,584.05,583.39,0.31473346]
[1744576330471,2.15766913,584.04,583.39,0.31473346]
[1744576330671,2.15766913,584.03,583.39,0.31473346]
[1744576330871,2.15766913,584.02,583.39,0.31473346]
[1744576331071,2.15766913,584.01,583.39,0.31473346]
[1744576331371,2.15766913,584.0,583.39,0.65755729]
[1744576331573,2.15766913,583.99,583.39,0.65755729]
[1744576331776,2.15766913,583.98,583.4,0.31473346]
[1744576331973,2.15714123,583.97,583.4,0.65755142]
[1744576332176,2.15714123,583.96,583.41,0.65754554]
[1744576332382,2.15714123,583.95,583.42,0.65753967]
[1744576332581,2.15714123,583.94,583.43,0.31471064]
[1744576332776,2.15714123,583.93,583.43,0.31471064]
[1744576333080,2.15714123,583.92,583.43,0.31471064]
[1744576333281,1.51050919,583.91,583.43,0.31471064]
[1744576333578,1.51050919,583.9,583.43,0.31471064]
[1744576333781,0.34214938,584.54,583.44,0.34279446]
[1744576334078,2.15595585,584.53,583.45,0.31467587]
[1744576334279,2.46711957,584.52,583.45,0.31467587]
[1744576334478,2.46711957,584.51,583.46,0.34278271]
[1744576334680,2.46711957,584.5,583.47,0.31467587]
[1744576334981,2.46711957,584.49,583.47,0.31467587]
[1744576335182,2.15595585,584.48,583.47,0.31467587]
[1744576335481,2.15507646,584.47,583.47,0.31467587]
[1744576335679,2.15507646,584.46,583.48,0.31464682]
[1744576335982,2.15507646,584.45,583.49,0.31464682]
[1744576336182,2.15507646,584.44,583.47,0.31464682]
[1744576336379,2.15507646,584.43,583.47,0.31464682]
[1744576336680,2.15457741,584.42,583.48,0.877]
[1744576336878,0.34214938,584.54,583.49,0.31464682]
[1744576336879,2.15457741,584.41,583.49,0.31464682]
[1744576337076,2.15457741,584.4,583.49,0.31464682]
[1744576337381,2.1540123,584.39,583.5,0.31462203]
[1744576337582,2.1540123,584.38,583.5,0.986]
[1744576337775,2.1540123,584.37,583.51,0.31462203]
[1744576337977,2.1540123,584.36,583.51,0.31462203]
[1744576338180,2.1540123,584.35,583.51,0.31462203]
[1744576338379,2.1540123,584.34,583.51,0.31462203]
[1744576338581,2.1540123,584.33,583.51,0.31462203]
[1744576338781,2.1540123,584.32,583.52,0.34274746]
[1744576339083,2.1540123,584.31,583.53,0.31462203]
[1744576339380,2.1540123,584.3,583.54,0.34273571]
[1744576339579,2.1540123,584.29,583.55,0.31462203]
[1744576339777,2.1540123,584.28,583.56,0.34272397]
[1744576339980,2.1540123,584.27,583.57,0.31462203]
[1744576340182,2.1540123,584.26,583.58,0.34271222]
[1744576340380,2.1540123,584.25,583.59,0.31462203]
[1744576340581,0.215,584.58,583.6,0.34270047]
[1744576340582,2.1540123,584.24,583.6,0.34270047]
[1744576340779,2.1540123,584.23,583.61,0.31462203]
[1744576340983,2.1540123,584.22,583.61,0.31462203]
[1744576341182,2.1540123,584.21,583.61,0.31462203]
[1744576341382,1.50841069,584.2,583.61,0.31462203]
[1744576341584,1.50841069,584.19,583.61,0.31462203]
[1744576341784,0.215,584.58,583.62,0.914]
[1744576342085,0.215,584.58,583.63,0.31462203]
[1744576342086,2.15071258,584.57,583.63,0.31462203]
[1744576342286,2.15071258,584.56,583.63,0.31462203]
[1744576342484,2.15093239,584.55,583.63,0.31462203]
[1744576342684,2.15093239,584.54,583.63,0.31462203]
[1744576342880,2.15093239,584.53,583.63,0.31462203]
[1744576343185,2.15093239,584.52,583.64,0.34267699]
[1744576343379,2.15093239,584.51,583.64,0.34267699]
[1744576343583,2.15093239,584.5,583.65,0.31456277]
[1744576343779,2.15093239,584.49,583.65,0.31456277]
[1744576343984,2.15093239,584.48,583.65,0.31456277]
[1744576344186,2.149966,584.47,583.65,1.15256277]
[1744576344387,2.149966,584.46,583.66,0.31456277]
[1744576344683,2.149966,584.45,583.66,0.31456277]
[1744576344887,2.149966,584.44,583.67,0.34265937]
[1744576345087,2.149966,584.43,583.68,0.31456277]
[1744576345386,2.149966,584.42,583.68,0.31456277]
[1744576345586,2.149966,584.41,583.68,0.31456277]
[1744576345787,2.149966,584.4,583.68,0.31456277]
[1744576345987,2.149966,584.39,583.68,0.31456277]
[1744576346189,2.149966,584.38,583.69,0.34264763]
[1744576346385,1.30708766,585.43,583.7,0.31456277]
[1744576346386,2.149966,584.37,583.7,0.31456277]
[1744576346583,2.149966,584.36,583.71,0.34263589]
[1744576346782,2.149966,584.35,583.72,0.31456277]
[1744576346987,2.149966,584.34,583.72,0.31456277]
[1744576347287,1.50532349,584.33,583.72,0.31456277]
[1744576347490,1.30708766,585.49,583.72,0.31456277]
[1744576347692,0.29791332,585.28,583.72,0.31456277]
[1744576347889,0.34178102,585.17,583.72,0.31456277]
[1744576348089,2.14619316,585.16,583.73,0.34262415]
[1744576348287,2.45717735,585.15,583.74,0.31449603]
[1744576348492,2.45717735,585.14,583.75,0.34261241]
[1744576348689,2.45717735,585.13,583.76,0.31449603]
[1744576348993,2.45717735,585.12,583.77,0.34260068]
[1744576349190,2.45717735,585.11,583.78,0.31449603]
[1744576349494,2.45610654,585.1,583.79,0.34258894]
[1744576349695,2.45609185,585.09,583.8,0.31448131]
[1744576349893,2.45609185,585.08,583.8,0.31448131]
[1744576350090,2.45609185,585.07,583.8,0.31448131]
[1744576350289,2.45609185,585.06,583.8,0.31448131]
[1744576350494,2.45609185,585.05,583.8,0.31448131]
[1744576350691,2.45609185,585.04,583.8,0.31448131]
[1744576350895,2.45609185,585.03,583.8,0.31448131]
[1744576351095,2.45609185,585.02,583.8,0.31448131]
[1744576351296,2.45609904,585.01,583.81,0.3144885]
[1744576351590,2.45609904,585.0,583.82,0.65705984]
[1744576351790,2.14512235,584.99,583.83,0.65705397]
[1744576351996,2.45609904,584.98,583.84,0.6570481]
[1744576352198,2.45609904,584.97,583.85,0.65704223]
[1744576352397,2.45609904,584.96,583.86,0.3144885]
[1744576352594,2.45609904,584.95,583.86,0.3144885]
[1744576352897,2.45609904,584.94,583.86,0.3144885]
[1744576353099,2.45609904,584.93,583.86,0.3144885]
[1744576353300,2.45609904,584.92,583.86,0.3144885]
[1744576353493,2.45609904,584.91,583.87,0.716]
[1744576353698,2.45609904,584.9,583.88,0.3144885]
[1744576353899,2.45609904,584.89,583.88,1.3294885]
[1744576354100,2.45609904,584.88,583.89,0.3144885]
[1744576354293,2.45609904,584.87,583.89,0.3144885]
[1744576354599,2.45476381,584.86,583.89,0.3144885]
[1744576354800,2.45476381,584.85,583.89,0.3144885]
[1744576355000,0.215,585.14,583.89,0.3144885]
[1744576355001,2.45476381,584.84,583.89,0.3144885]
[1744576355298,2.45476381,584.83,583.89,0.3144885]
[1744576355498,2.45476381,584.82,583.89,0.3144885]
[1744576355698,2.45476381,584.81,583.89,0.3144885]
[1744576355901,2.14378712,584.8,583.89,0.3144885]
[1744576356202,2.14378712,584.79,583.89,0.3144885]
[1744576356395,2.14378712,584.78,583.89,0.3144885]
[1744576356599,2.14378712,584.77,583.89,0.3144885]
[1744576356800,2.14378712,584.76,583.89,0.3144885]
[1744576356997,2.14378712,584.75,583.89,0.3144885]
[1744576357198,2.14378712,584.74,583.89,0.3144885]
[1744576357401,2.14378712,584.73,583.89,0.3144885]
[1744576357601,2.14378712,584.72,583.9,0.31449518]
[1744576357900,2.14378712,584.71,583.91,0.31449518]
[1744576358097,2.14378712,584.7,583.89,0.31449518]
[1744576358297,2.14378712,584.69,583.9,0.31449518]
[1744576358495,2.14378712,584.68,583.89,0.31449518]
[1744576358697,2.14378712,584.67,583.89,0.31449518]
[1744576358900,2.14378712,584.66,583.89,0.31449518]
[1744576359100,2.14378712,584.65,583.89,0.31449518]
[1744576359298,2.14378712,584.64,583.89,0.31449518]
[1744576359503,2.14378712,584.63,583.89,0.31449518]
[1744576359702,2.14378712,584.62,583.89,0.31449518]
[1744576359904,2.14378712,584.61,583.9,0.822]
[1744576360103,2.14378712,584.6,583.91,0.31449518]
[1744576360300,2.14378712,584.59,583.91,0.31449518]
[1744576360502,2.14378712,584.58,583.91,0.31449518]
[1744576360699,2.14378712,584.57,583.91,1.02049518]
[1744576360904,2.14378712,584.56,583.92,0.31449518]
[1744576361100,2.14378712,584.55,583.92,0.31449518]
[1744576361300,2.14378712,584.54,583.92,0.31449518]
[1744576361605,2.14378712,584.54,583.91,0.706]
[1744576361606,2.14378712,584.53,583.91,0.706]
[1744576361805,2.14378712,584.52,583.91,0.706]
[1744576362006,2.14378712,584.51,583.91,0.706]
[1744576362306,1.50223296,584.5,583.91,0.706]
[1744576362506,1.50223296,584.49,583.91,0.706]
[1744576362708,1.50223296,584.48,583.91,0.706]
[1744576362908,1.50223296,584.47,583.91,0.706]
[1744576363210,2.14321926,584.46,583.91,0.706]
[1744576363405,0.215,585.14,583.91,0.706]
[1744576363406,2.14321926,584.45,583.91,0.706]
[1744576363606,2.14321926,584.44,583.91,0.706]
[1744576363803,2.14321926,584.43,583.91,0.706]
[1744576364004,2.14321926,584.42,583.91,0.706]
[1744576364203,1.50223296,584.41,583.91,0.706]
[1744576364403,1.50223296,584.4,583.91,0.706]
[1744576364604,1.50223296,584.39,583.91,0.706]
[1744576364804,1.50223296,584.38,583.91,0.706]
[1744576365006,1.50223296,584.37,583.91,0.706]
[1744576365207,0.215,585.14,583.91,0.706]
[1744576365406,2.45023161,585.13,583.91,0.706]
[1744576365608,2.45023161,585.12,583.91,0.706]
[1744576365807,2.45023161,585.11,583.91,0.706]
[1744576366008,2.45023161,585.1,583.91,0.706]
[1744576366209,2.45023161,585.09,583.91,0.706]
[1744576366508,2.13923257,585.08,583.91,0.706]
[1744576366707,2.4502317,585.07,583.91,0.706]
[1744576366910,2.4502317,585.06,583.91,0.706]
[1744576367109,2.45022631,585.05,583.91,0.706]
[1744576367310,2.45022631,585.04,583.91,1.837]
[1744576367611,2.45022631,585.03,583.91,1.837]
[1744576367911,2.45022631,585.02,583.91,1.837]
[1744576368109,2.45022631,585.01,583.91,1.837]
[1744576368310,2.45022631,585.0,583.91,1.837]
[1744576368509,2.45022631,584.99,583.91,1.837]
[1744576368708,2.45022631,584.98,583.91,1.837]
[1744576368912,2.45022631,584.97,583.91,1.837]
[1744576369106,2.45022631,584.96,583.91,1.837]
[1744576369309,2.45064404,584.95,583.91,1.837]
[1744576369512,2.45064404,584.94,583.91,1.837]
[1744576369712,2.45064404,584.93,583.91,1.837]
[1744576369911,2.45064404,584.92,583.91,1.837]
[1744576370112,2.45064404,584.91,583.91,1.837]
[1744576370308,2.45066315,584.9,583.91,1.837]
[1744576370508,2.45066315,584.89,583.91,2.82]
[1744576370713,2.45066315,584.88,583.91,2.82]
[1744576371012,2.45066315,584.87,583.91,2.82]
[1744576371214,2.1396503,584.86,583.91,2.82]
[1744576371415,2.1413536,584.85,583.91,2.82]
[1744576371612,2.45236661,584.84,583.91,3.647]
[1744576371815,2.45236661,584.83,583.91,3.647]
[1744576372016,2.45236661,584.82,583.91,3.647]
[1744576372218,2.45236661,584.81,583.91,3.647]
[1744576372417,2.45236661,584.8,583.91,3.647]
[1744576372616,2.45236661,584.79,583.91,3.647]
[1744576372813,2.1413536,584.78,583.91,3.647]
[1744576373018,2.1413536,584.77,583.91,3.647]
[1744576373214,2.1413536,584.76,583.91,3.647]
[1744576373413,2.1413536,584.75,583.91,3.647]
[1744576373620,2.1413536,584.74,583.91,3.647]
[1744576373817,2.1413536,584.73,583.91,3.647]
[1744576374021,2.1413536,584.72,583.91,3.647]
[1744576374217,2.1413536,584.71,583.91,3.647]
[1744576374422,2.1413536,584.7,583.91,3.647]
[1744576374723,2.1413536,584.69,583.91,3.647]
[1744576374917,2.1413536,584.68,583.91,3.647]
[1744576375121,2.1413536,584.67,583.91,3.647]
[1744576375321,2.1413536,584.66,583.91,3.647]
[1744576375521,2.1413536,584.65,583.91,3.647]
[1744576375823,2.1413536,584.64,583.91,3.647]
[1744576376022,2.1413536,584.63,583.91,3.647]
[1744576376323,2.1413536,584.62,583.91,3.647]
[1744576376522,2.1413536,584.61,583.91,3.647]
[1744576376722,2.1413536,584.6,583.91,3.647]
[1744576376922,2.1413536,584.59,583.91,3.647]
[1744576377122,2.1413536,584.58,583.91,3.647]
[1744576377325,2.1413536,584.57,583.91,3.647]
[1744576377523,2.1413536,584.56,583.91,3.647]
[1744576377720,2.1413536,584.55,583.91,3.647]
[1744576378025,2.1413536,584.54,583.91,3.647]
[1744576378220,2.1413536,584.53,583.91,3.647]
[1744576378421,2.1413536,584.52,583.91,3.647]
[1744576378624,2.1413536,584.51,583.91,3.647]
[1744576378825,2.1413536,584.5,583.91,3.647]
[1744576379019,2.1413536,584.49,583.91,3.647]
[1744576379222,2.1413536,584.48,583.91,3.647]
[1744576379424,2.1413536,584.47,583.91,3.647]
[1744576379624,2.1413536,584.46,583.91,3.647]
[1744576379825,2.1413536,584.45,583.91,3.647]
[1744576380022,2.1413536,584.44,583.91,3.647]
[1744576380322,2.14381352,584.43,583.91,3.647]
[1744576380526,2.14381352,584.42,583.91,3.647]
[1744576380727,2.14381352,584.41,583.91,3.647]
[1744576380929,2.14381352,584.4,583.91,3.647]
[1744576381125,2.14381352,584.39,583.91,3.647]
[1744576381330,2.14381352,584.38,583.91,3.647]
[1744576381629,2.14381352,584.37,583.91,3.647]
[1744576381830,2.14381352,584.36,583.91,3.647]
[1744576382130,2.14381352,584.35,583.91,3.647]
[1744576382430,2.14520834,584.34,583.91,3.647]
[1744576382631,1.50204816,584.33,583.91,3.647]
[1744576382827,1.50204816,584.32,583.91,3.647]
[1744576383032,0.215,584.41,583.91,3.647]
[1744576383229,2.14599353,584.4,583.91,2.941]
[1744576383432,2.14599353,584.39,583.91,2.941]
[1744576383628,2.14599353,584.38,583.91,2.941]
[1744576383836,2.14599353,584.37,583.91,2.941]
[1744576384133,2.14599353,584.36,583.91,2.941]
[1744576384334,2.14599353,584.35,583.91,2.941]
[1744576384534,2.14599353,584.34,583.91,2.941]
[1744576384737,1.50283898,584.33,583.91,2.941]
[1744576384935,1.50283898,584.32,583.91,2.941]
[1744576385136,1.50283898,584.31,583.91,2.941]
[1744576385336,1.50393105,584.3,583.91,2.941]
[1744576385537,1.50393105,584.29,583.91,2.941]
[1744576385735,0.215,584.41,583.91,2.941]
[1744576385933,2.14826749,584.4,583.91,2.941]
[1744576386239,2.14826749,584.39,583.91,2.941]
[1744576386537,2.14826749,584.38,583.91,2.941]
[1744576386738,2.14826749,584.37,583.91,2.941]
[1744576386936,2.14826749,584.36,583.91,2.941]
[1744576387232,2.14826749,584.35,583.91,2.941]
[1744576387535,2.14826749,584.34,583.91,2.941]
[1744576387732,2.14826749,584.33,583.91,2.941]
[1744576388037,2.14826749,584.32,583.91,2.941]
[1744576388335,2.14826749,584.31,583.91,2.941]
[1744576388532,2.14826749,584.3,583.91,2.941]
[1744576388732,2.14826749,584.29,583.92,0.31452114]
[1744576388940,1.50443015,584.28,583.92,0.31452114]
[1744576389142,1.50443015,584.27,583.92,0.31452114]
[1744576389334,2.14927414,584.26,583.91,2.941]
[1744576389533,2.14927414,584.25,583.91,2.941]
[1744576389741,2.14927414,584.24,583.91,2.941]
[1744576389938,2.14927414,584.23,583.91,2.941]
[1744576390139,2.14927414,584.22,583.91,2.941]
[1744576390340,2.14927414,584.21,583.91,2.941]
[1744576390536,2.14990122,584.2,583.91,2.941]
[1744576390741,2.14990122,584.19,583.91,2.941]
[1744576390936,1.50443015,584.18,583.91,2.941]
[1744576391143,1.50443015,584.17,583.91,2.941]
[1744576391342,1.50893867,584.16,583.91,2.941]
[1744576391538,0.215,584.41,583.91,2.941]
[1744576391741,2.15471205,584.4,583.91,2.941]
[1744576391939,2.15471205,584.39,583.91,2.941]
[1744576392142,2.15471205,584.38,583.91,2.941]
[1744576392443,2.15471205,584.37,583.91,2.941]
[1744576392639,2.15471205,584.36,583.91,2.941]
[1744576392838,2.15471205,584.35,583.91,2.941]
[1744576393038,2.15471205,584.34,583.91,2.941]
[1744576393242,2.15471205,584.33,583.91,2.941]
[1744576393543,2.15471205,584.32,583.91,2.941]
[1744576393745,2.15471205,584.31,583.91,2.941]
[1744576393945,2.15471205,584.3,583.91,0.827]
[1744576394245,2.15471205,584.29,583.91,0.827]
[1744576394441,2.15471205,584.28,583.91,0.827]
[1744576394641,2.15471205,584.27,583.91,0.827]
[1744576394843,1.50893761,584.26,583.91,0.827]
[1744576395043,1.50893761,584.25,583.91,0.827]
[1744576395242,0.215,584.41,583.91,0.827]
[1744576395544,2.15707288,584.4,583.91,0.827]
[1744576395746,2.15707288,584.39,583.91,0.827]
[1744576395946,2.15707288,584.38,583.91,0.827]
[1744576396146,2.15707288,584.37,583.91,0.827]
[1744576396346,2.15707288,584.36,583.91,0.827]
[1744576396548,2.15707288,584.35,583.91,1.717]
[1744576396749,2.15707288,584.34,583.91,1.717]
[1744576396944,2.15707288,584.33,583.91,1.717]
[1744576397251,2.15707288,584.32,583.91,1.717]
[1744576397448,2.15707288,584.31,583.91,2.759]
[1744576397648,2.15707288,584.3,583.91,2.759]
[1744576397951,2.15707288,584.29,583.91,2.759]
[1744576398147,2.15707288,584.28,583.91,2.759]
[1744576398348,2.15707288,584.27,583.91,2.759]
[1744576398545,2.15707288,584.26,583.91,2.759]
[1744576398744,2.15707288,584.25,583.91,2.759]
[1744576399049,2.15707288,584.24,583.91,2.759]
[1744576399249,2.15707288,584.23,583.91,2.759]
[1744576399544,2.15707288,584.22,583.91,2.759]
[1744576399749,2.15707288,584.21,583.91,1.932]
[1744576399944,2.15707288,584.2,583.91,1.932]
[1744576400147,2.15707288,584.19,583.91,1.932]
[1744576400344,2.15707288,584.18,583.91,1.932]
[1744576400544,1.51060285,584.17,583.91,1.932]
[1744576400751,1.51060285,584.16,583.91,1.932]
[1744576400951,1.51060285,584.15,583.91,1.932]
[1744576401150,1.51315446,584.14,583.91,1.932]
[1744576401351,0.215,584.33,583.91,1.932]
[1744576401547,2.16102221,584.32,583.91,1.932]
[1744576401745,2.16102221,584.31,583.91,1.932]
[1744576401946,2.16102221,584.3,583.91,1.932]
[1744576402249,2.16102221,584.29,583.91,1.932]
[1744576402450,2.16102221,584.28,583.91,1.932]
[1744576402650,2.16102221,584.27,583.91,1.932]
[1744576402845,2.16102221,584.26,583.91,1.932]
[1744576403046,2.16108195,584.25,583.91,1.932]
[1744576403246,2.16108195,584.24,583.91,1.932]
[1744576403452,2.16108195,584.23,583.91,1.932]
[1744576403644,2.16108195,584.22,583.91,1.932]
[1744576403846,2.16108195,584.21,583.91,1.932]
[1744576404147,2.16108195,584.2,583.91,1.932]
[1744576404348,2.16108195,584.19,583.91,1.932]
[1744576404549,2.16108195,584.18,583.91,1.932]
[1744576404753,2.16108195,584.17,583.92,0.31451413]
[1744576404953,2.16108195,584.16,583.91,1.932]
[1744576405150,2.16108195,584.15,583.91,1.932]
[1744576405347,2.16108195,584.14,583.91,1.932]
[1744576405553,2.16108195,584.13,583.91,1.932]
[1744576405848,2.16108195,584.12,583.91,1.932]
[1744576406048,2.16108195,584.11,583.91,1.932]
[1744576406255,2.16108195,584.1,583.91,1.932]
[1744576406454,2.16108195,584.09,583.91,1.932]
[1744576406649,2.16108195,584.08,583.91,1.932]
[1744576406853,2.16108195,584.07,583.91,1.932]
[1744576407053,1.51336439,584.06,583.91,1.932]
[1744576407248,1.51336439,584.05,583.91,1.932]
[1744576407453,0.215,584.33,583.91,1.932]
[1744576407754,2.16140032,584.32,583.91,1.932]
[1744576407955,2.16140032,584.31,583.91,3.025]
[1744576408155,2.16141552,584.3,583.91,3.025]
[1744576408357,2.16141552,584.29,583.91,3.025]
[1744576408550,2.16141552,584.28,583.91,3.025]
[1744576408749,2.16141552,584.27,583.91,3.025]
[1744576408951,2.16141552,584.26,583.91,3.025]
[1744576409255,2.16141552,584.25,583.91,3.025]
[1744576409455,2.16141552,584.24,583.91,3.025]
[1744576409650,2.16141552,584.23,583.91,3.025]
[1744576409852,2.16141552,584.22,583.91,3.025]
[1744576410054,2.16141552,584.21,583.91,3.025]
[1744576410354,2.16141552,584.2,583.91,3.025]
[1744576410654,2.16141552,584.19,583.91,3.025]
[1744576410850,2.16141552,584.18,583.91,3.025]
[1744576411051,2.16141552,584.17,583.91,3.025]
[1744576411254,2.16141552,584.16,583.91,3.025]
[1744576411454,2.16141552,584.15,583.91,3.025]
[1744576411657,2.16141552,584.14,583.91,3.025]
[1744576411852,2.16141552,584.13,583.91,3.025]
[1744576412052,2.16141552,584.12,583.91,3.025]
[1744576412254,2.16141552,584.11,583.91,3.025]
[1744576412450,2.16141552,584.1,583.91,3.025]
[1744576412656,2.16141552,584.09,583.91,3.025]
[1744576412850,2.16141552,584.08,583.91,3.025]
[1744576413053,2.16141552,584.07,583.91,3.025]
[1744576413250,2.16141552,584.06,583.91,3.025]
[1744576413454,2.16059194,584.05,583.91,3.025]
[1744576413654,2.16059194,584.04,583.91,3.025]
[1744576413954,2.16059194,584.03,583.91,3.025]
[1744576414151,2.16059194,584.02,583.91,3.025]
[1744576414355,2.16059194,584.01,583.91,3.025]
[1744576414556,2.16059194,584.0,583.91,3.025]
[1744576414857,2.16059194,583.99,583.91,3.025]
[1744576415055,1.51363843,583.98,583.91,3.025]
[1744576415356,1.51124664,583.97,583.91,3.025]
[1744576415552,0.215,584.33,583.91,3.025]
[1744576415757,2.15755068,584.32,583.91,3.025]
[1744576415954,2.15755068,584.31,583.91,3.025]
[1744576416256,2.15755068,584.3,583.91,3.025]
[1744576416457,2.15755068,584.29,583.91,3.025]
[1744576416653,2.15755068,584.28,583.91,3.025]
[1744576416853,2.15755068,584.27,583.91,3.025]
[1744576417056,2.15755068,584.26,583.91,3.025]
[1744576417257,2.15755068,584.25,583.91,3.025]
[1744576417453,2.15755068,584.24,583.91,3.025]
[1744576417653,2.15755068,584.23,583.91,3.025]
[1744576417854,2.15755068,584.22,583.91,3.025]
[1744576418057,2.15755068,584.21,583.91,3.025]
[1744576418255,2.15755068,584.2,583.91,3.025]